[Event "*** Titled Tuesday Blitz"]
[Site "Chess.com"]
[Date "2020.04.21"]
[Round "2"]
[White "sboshaon21"]
[Black "whogeeyao"]
[Result "1-0"]
[WhiteElo "2050"]
[BlackElo "2352"]
[TimeControl "180+1"]
[EndTime "10:16:17 PDT"]
[Termination "sboshaon21 won by resignation"]

1. d4 {[%clk 0:03:00.9]} 1... Nf6 {[%clk 0:02:59.4]} 2. c4 {[%clk 0:03:00.5]}
2... g6 {[%clk 0:02:59.6]} 3. Nc3 {[%clk 0:02:59]} 3... d5 {[%clk 0:02:59.2]} 4.
Bg5 {[%clk 0:02:53.9]} 4... Bg7 {[%clk 0:02:59.5]} 5. e3 {[%clk 0:02:48.7]} 5...
O-O {[%clk 0:02:59.3]} 6. Nf3 {[%clk 0:02:47.5]} 6... c5 {[%clk 0:02:58.4]} 7.
Bxf6 {[%clk 0:02:30.5]} 7... Bxf6 {[%clk 0:02:57.6]} 8. cxd5 {[%clk 0:02:30.5]}
8... cxd4 {[%clk 0:02:54.4]} 9. Nxd4 {[%clk 0:02:29.3]} 9... Qb6 {[%clk
0:02:53.1]} 10. Nb3 {[%clk 0:02:11.1]} 10... Nd7 {[%clk 0:02:49.6]} 11. Be2
{[%clk 0:01:58.1]} 11... Rd8 {[%clk 0:02:44.7]} 12. O-O {[%clk 0:01:55]} 12...
Nc5 {[%clk 0:02:43.9]} 13. Nxc5 {[%clk 0:01:33.7]} 13... Qxc5 {[%clk 0:02:44.8]}
14. Qb3 {[%clk 0:01:02.5]} 14... Bf5 {[%clk 0:02:27.3]} 15. e4 {[%clk
0:00:32.4]} 15... Bxc3 {[%clk 0:02:16.8]} 16. exf5 {[%clk 0:00:32.1]} 16... Bd4
{[%clk 0:02:13.5]} 17. fxg6 {[%clk 0:00:30.8]} 17... hxg6 {[%clk 0:02:14.4]} 18.
Bf3 {[%clk 0:00:29]} 18... Rab8 {[%clk 0:02:02.6]} 19. Rac1 {[%clk 0:00:28.8]}
19... Qd6 {[%clk 0:02:02.3]} 20. g3 {[%clk 0:00:22.9]} 20... Qf6 {[%clk
0:02:00.5]} 21. Bg2 {[%clk 0:00:19.9]} 21... Bxb2 {[%clk 0:01:58.1]} 22. Rc7
{[%clk 0:00:17.7]} 22... Bd4 {[%clk 0:01:46.5]} 23. Rxb7 {[%clk 0:00:16.9]}
23... Rbc8 {[%clk 0:01:46]} 24. h4 {[%clk 0:00:12.9]} 24... Rc3 {[%clk
0:01:43.7]} 25. Qb1 {[%clk 0:00:10.2]} 25... Rxg3 {[%clk 0:01:37.9]} 26. Qe4
{[%clk 0:00:06.6]} 26... Rg4 {[%clk 0:01:22]} 27. Qxg4 {[%clk 0:00:04.6]} 1-0

[Event "*** Titled Tuesday Blitz"]
[Site "Chess.com"]
[Date "2020.04.21"]
[Round "2"]
[White "icychess54"]
[Black "mbachez"]
[Result "0-1"]
[WhiteElo "2187"]
[BlackElo "2433"]
[TimeControl "180+1"]
[EndTime "10:16:19 PDT"]
[Termination "mbachez won by resignation"]

1. c4 {[%clk 0:03:00.9]} 1... e5 {[%clk 0:02:55.4]} 2. Nf3 {[%clk 0:03:01.2]}
2... Nc6 {[%clk 0:02:52.6]} 3. Nc3 {[%clk 0:03:01.5]} 3... Nf6 {[%clk
0:02:52.3]} 4. e3 {[%clk 0:03:01.9]} 4... Bb4 {[%clk 0:02:50.8]} 5. Qc2 {[%clk
0:03:01.7]} 5... O-O {[%clk 0:02:50.7]} 6. Be2 {[%clk 0:03:01.3]} 6... Re8
{[%clk 0:02:50.7]} 7. O-O {[%clk 0:03:01.7]} 7... Bxc3 {[%clk 0:02:50.2]} 8.
Qxc3 {[%clk 0:03:01.5]} 8... d6 {[%clk 0:02:49.3]} 9. a3 {[%clk 0:03:01]} 9...
a5 {[%clk 0:02:48.6]} 10. b3 {[%clk 0:03:00.7]} 10... Bf5 {[%clk 0:02:48.1]} 11.
d3 {[%clk 0:02:59.1]} 11... h6 {[%clk 0:02:48.2]} 12. Bb2 {[%clk 0:02:58.4]}
12... Ne7 {[%clk 0:02:47.7]} 13. b4 {[%clk 0:02:51.3]} 13... Ng6 {[%clk
0:02:41.6]} 14. e4 {[%clk 0:02:46.9]} 14... Bg4 {[%clk 0:02:40.1]} 15. h3 {[%clk
0:02:32.7]} 15... Nf4 {[%clk 0:02:35.1]} 16. Qd2 {[%clk 0:02:18.9]} 16... Bxh3
{[%clk 0:02:05.1]} 17. gxh3 {[%clk 0:02:14.4]} 17... Qc8 {[%clk 0:02:04.9]} 18.
Nxe5 {[%clk 0:00:44.9]} 18... dxe5 {[%clk 0:01:56]} 19. Bxe5 {[%clk 0:00:44]}
19... Nxe2+ {[%clk 0:01:55.2]} 20. Qxe2 {[%clk 0:00:42.7]} 20... Rxe5 {[%clk
0:01:54.8]} 21. f4 {[%clk 0:00:43.1]} 21... Re8 {[%clk 0:01:53.2]} 22. Kh2
{[%clk 0:00:38.1]} 22... Qd7 {[%clk 0:01:44.5]} 23. Rg1 {[%clk 0:00:31.7]} 23...
axb4 {[%clk 0:01:42.1]} 24. Qg2 {[%clk 0:00:21.2]} 24... g6 {[%clk 0:01:41.2]}
25. f5 {[%clk 0:00:14.4]} 25... Qd6+ {[%clk 0:01:37.1]} 26. Kh1 {[%clk
0:00:13.8]} 26... g5 {[%clk 0:01:37.2]} 27. h4 {[%clk 0:00:12.7]} 27... g4
{[%clk 0:01:36.3]} 28. Qd2 {[%clk 0:00:13.1]} 28... Kh7 {[%clk 0:01:35]} 29.
axb4 {[%clk 0:00:09.8]} 29... Rxa1 {[%clk 0:01:32.4]} 30. Rxa1 {[%clk
0:00:10.7]} 30... Nxe4 {[%clk 0:01:31.1]} 31. Qg2 {[%clk 0:00:04.8]} 31... Qxd3
{[%clk 0:01:29.5]} 32. Qxg4 {[%clk 0:00:04.5]} 32... Nf2+ {[%clk 0:01:29]} 0-1

[Event "*** Titled Tuesday Blitz"]
[Site "Chess.com"]
[Date "2020.04.21"]
[Round "2"]
[White "Kezin_Roman"]
[Black "scaryninja"]
[Result "1-0"]
[WhiteElo "2735"]
[BlackElo "2509"]
[TimeControl "180+1"]
[EndTime "10:16:20 PDT"]
[Termination "Kezin_Roman won by resignation"]

1. d4 {[%clk 0:03:00.9]} 1... Nf6 {[%clk 0:03:00]} 2. c4 {[%clk 0:03:01.1]} 2...
e6 {[%clk 0:03:00.4]} 3. g3 {[%clk 0:03:00.6]} 3... Bb4+ {[%clk 0:02:59.3]} 4.
Bd2 {[%clk 0:03:00.1]} 4... a5 {[%clk 0:02:57.6]} 5. Bg2 {[%clk 0:02:59.8]} 5...
O-O {[%clk 0:02:55.8]} 6. Nf3 {[%clk 0:02:58.5]} 6... d6 {[%clk 0:02:54.5]} 7.
O-O {[%clk 0:02:57.4]} 7... Bxd2 {[%clk 0:02:53.9]} 8. Qxd2 {[%clk 0:02:58.3]}
8... Nbd7 {[%clk 0:02:54.2]} 9. Nc3 {[%clk 0:02:58.1]} 9... Qe7 {[%clk 0:02:54]}
10. Rac1 {[%clk 0:02:42.4]} 10... Nb6 {[%clk 0:02:45]} 11. b3 {[%clk 0:02:39.9]}
11... a4 {[%clk 0:02:43.6]} 12. c5 {[%clk 0:02:24.2]} 12... dxc5 {[%clk
0:02:39.2]} 13. dxc5 {[%clk 0:02:25.1]} 13... Rd8 {[%clk 0:02:15.2]} 14. Qg5
{[%clk 0:02:08.8]} 14... h6 {[%clk 0:02:13.1]} 15. Qe5 {[%clk 0:01:49.1]} 15...
Nbd5 {[%clk 0:01:53.5]} 16. Nxa4 {[%clk 0:01:45.1]} 16... Bd7 {[%clk 0:01:52.6]}
17. Nc3 {[%clk 0:01:17.9]} 17... Nxc3 {[%clk 0:01:34.7]} 18. Qxc3 {[%clk
0:01:18.8]} 18... Rxa2 {[%clk 0:01:30.6]} 19. Ne5 {[%clk 0:01:18.3]} 19... Bc8
{[%clk 0:01:10]} 20. e3 {[%clk 0:01:08.8]} 20... Nd7 {[%clk 0:00:59.1]} 21. Nd3
{[%clk 0:01:05.6]} 21... b6 {[%clk 0:00:50]} 22. Nb4 {[%clk 0:01:04.5]} 22...
Ra3 {[%clk 0:00:39.8]} 23. Nc6 {[%clk 0:01:03.6]} 23... Qf8 {[%clk 0:00:33.2]}
24. Nxd8 {[%clk 0:01:03.7]} 24... Qxd8 {[%clk 0:00:34.1]} 25. cxb6 {[%clk
0:01:03.7]} 25... Nxb6 {[%clk 0:00:34]} 26. Rfd1 {[%clk 0:00:59.9]} 26... Qe7
{[%clk 0:00:28.4]} 27. Qxc7 {[%clk 0:00:59.3]} 27... Qxc7 {[%clk 0:00:29.3]} 28.
Rxc7 {[%clk 0:00:59.5]} 28... Ba6 {[%clk 0:00:28.1]} 29. Ra7 {[%clk 0:00:56.2]}
1-0

[Event "*** Titled Tuesday Blitz"]
[Site "Chess.com"]
[Date "2020.04.21"]
[Round "2"]
[White "andy_rekt"]
[Black "binbin239"]
[Result "1-0"]
[WhiteElo "2254"]
[BlackElo "2437"]
[TimeControl "180+1"]
[EndTime "10:16:20 PDT"]
[Termination "andy_rekt won by checkmate"]

1. d4 {[%clk 0:03:00.9]} 1... Nf6 {[%clk 0:02:59.3]} 2. c4 {[%clk 0:03:01]} 2...
g6 {[%clk 0:02:59.1]} 3. Nc3 {[%clk 0:03:01.5]} 3... d5 {[%clk 0:02:59.4]} 4.
Bf4 {[%clk 0:03:00.5]} 4... Bg7 {[%clk 0:02:59.4]} 5. e3 {[%clk 0:03:00.6]} 5...
O-O {[%clk 0:02:59.4]} 6. Nf3 {[%clk 0:03:00.5]} 6... c5 {[%clk 0:02:59.8]} 7.
dxc5 {[%clk 0:03:00.5]} 7... Qa5 {[%clk 0:02:59.9]} 8. Rc1 {[%clk 0:03:00]} 8...
dxc4 {[%clk 0:02:59.4]} 9. Bxc4 {[%clk 0:03:00]} 9... Qxc5 {[%clk 0:02:59.9]}
10. Bb3 {[%clk 0:03:00.1]} 10... Qa5 {[%clk 0:02:55.4]} 11. O-O {[%clk 0:03:00]}
11... Nc6 {[%clk 0:02:55.9]} 12. h3 {[%clk 0:02:59.7]} 12... Bf5 {[%clk
0:02:55.9]} 13. Qe2 {[%clk 0:02:54.8]} 13... Ne4 {[%clk 0:02:55.8]} 14. g4
{[%clk 0:02:52.7]} 14... Nxc3 {[%clk 0:02:54.2]} 15. bxc3 {[%clk 0:02:52.7]}
15... Be4 {[%clk 0:02:53.3]} 16. Ng5 {[%clk 0:02:00.8]} 16... Bd5 {[%clk
0:02:50.5]} 17. c4 {[%clk 0:02:00.9]} 17... e5 {[%clk 0:01:50.6]} 18. cxd5
{[%clk 0:01:34.1]} 18... exf4 {[%clk 0:01:49.8]} 19. Nxf7 {[%clk 0:01:33.7]}
19... Nb4 {[%clk 0:01:11.3]} 20. d6 {[%clk 0:01:01.6]} 20... Bf6 {[%clk
0:00:35.3]} 21. Rc7 {[%clk 0:00:49.9]} 21... fxe3 {[%clk 0:00:31.1]} 22. Ng5+
{[%clk 0:00:44.2]} 22... Kh8 {[%clk 0:00:30.9]} 23. Rxh7# {[%clk 0:00:43.1]} 1-0

[Event "*** Titled Tuesday Blitz"]
[Site "Chess.com"]
[Date "2020.04.21"]
[Round "2"]
[White "The_Chess_Coach"]
[Black "Caracternin123"]
[Result "0-1"]
[WhiteElo "2145"]
[BlackElo "2625"]
[TimeControl "180+1"]
[EndTime "10:16:21 PDT"]
[Termination "Caracternin123 won by resignation"]

1. d4 {[%clk 0:03:00.9]} 1... Nf6 {[%clk 0:02:59.8]} 2. c4 {[%clk 0:03:01.3]}
2... c5 {[%clk 0:02:59.8]} 3. d5 {[%clk 0:03:01.2]} 3... b5 {[%clk 0:02:59.8]}
4. Qc2 {[%clk 0:03:01.7]} 4... b4 {[%clk 0:02:59]} 5. e4 {[%clk 0:03:01.8]} 5...
d6 {[%clk 0:02:59.1]} 6. b3 {[%clk 0:03:02.1]} 6... g6 {[%clk 0:02:58.3]} 7. Bb2
{[%clk 0:03:02.5]} 7... Bg7 {[%clk 0:02:58.7]} 8. Nd2 {[%clk 0:03:03.4]} 8...
O-O {[%clk 0:02:58]} 9. f4 {[%clk 0:03:03.6]} 9... e5 {[%clk 0:02:37]} 10. dxe6
{[%clk 0:02:59.5]} 10... fxe6 {[%clk 0:02:34.1]} 11. Ngf3 {[%clk 0:02:53]} 11...
Nc6 {[%clk 0:02:20.6]} 12. Bd3 {[%clk 0:02:48.8]} 12... Ng4 {[%clk 0:02:16.6]}
13. Bxg7 {[%clk 0:02:45.8]} 13... Kxg7 {[%clk 0:02:17.5]} 14. Qb2+ {[%clk
0:02:43.8]} 14... Qf6 {[%clk 0:02:07.5]} 15. Qxf6+ {[%clk 0:02:41.3]} 15... Rxf6
{[%clk 0:02:08.4]} 16. g3 {[%clk 0:02:41.3]} 16... e5 {[%clk 0:02:07.6]} 17. h3
{[%clk 0:02:20.4]} 17... Nh6 {[%clk 0:02:05.4]} 18. fxe5 {[%clk 0:02:17.3]}
18... dxe5 {[%clk 0:02:01.9]} 19. g4 {[%clk 0:02:06.8]} 19... Nf7 {[%clk
0:02:00.4]} 20. Ke2 {[%clk 0:02:06.4]} 20... Bb7 {[%clk 0:01:48.4]} 21. Rhf1
{[%clk 0:02:00.5]} 21... Rd8 {[%clk 0:01:44.2]} 22. Rad1 {[%clk 0:01:59.7]}
22... Rfd6 {[%clk 0:01:41.4]} 23. Bc2 {[%clk 0:01:52.6]} 23... Nd4+ {[%clk
0:01:13.2]} 24. Nxd4 {[%clk 0:01:52.2]} 24... exd4 {[%clk 0:01:14.1]} 25. Bd3
{[%clk 0:01:36.2]} 25... Re8 {[%clk 0:01:13.1]} 26. h4 {[%clk 0:01:32.4]} 26...
Ne5 {[%clk 0:01:09.5]} 27. g5 {[%clk 0:01:27.3]} 27... Bc8 {[%clk 0:01:03.9]}
28. Rde1 {[%clk 0:00:33.1]} 28... Bg4+ {[%clk 0:01:02.2]} 29. Nf3 {[%clk
0:00:33.3]} 29... Rf8 {[%clk 0:00:54.9]} 0-1

[Event "*** Titled Tuesday Blitz"]
[Site "Chess.com"]
[Date "2020.04.21"]
[Round "2"]
[White "Sviridov_Valery"]
[Black "Korchmar_Vasiliy"]
[Result "1-0"]
[WhiteElo "2851"]
[BlackElo "2578"]
[TimeControl "180+1"]
[EndTime "10:16:23 PDT"]
[Termination "Sviridov_Valery won by resignation"]

1. Nf3 {[%clk 0:03:00.9]} 1... d5 {[%clk 0:02:59.7]} 2. g3 {[%clk 0:03:00.9]}
2... g6 {[%clk 0:02:59.8]} 3. Bg2 {[%clk 0:03:01.3]} 3... Bg7 {[%clk 0:03:00.3]}
4. O-O {[%clk 0:03:02]} 4... e5 {[%clk 0:03:00.5]} 5. d3 {[%clk 0:03:02.3]} 5...
Ne7 {[%clk 0:03:00.1]} 6. e4 {[%clk 0:03:02.8]} 6... O-O {[%clk 0:02:59.5]} 7.
exd5 {[%clk 0:03:03.1]} 7... Nxd5 {[%clk 0:03:00.4]} 8. Nc3 {[%clk 0:03:02.4]}
8... Nxc3 {[%clk 0:03:00.3]} 9. bxc3 {[%clk 0:03:03.3]} 9... Nc6 {[%clk
0:03:01.2]} 10. Re1 {[%clk 0:03:03.3]} 10... Re8 {[%clk 0:03:00.9]} 11. Rb1
{[%clk 0:03:02.6]} 11... Rb8 {[%clk 0:03:00.4]} 12. Ng5 {[%clk 0:03:01.8]} 12...
Bf5 {[%clk 0:02:45.8]} 13. h4 {[%clk 0:02:37.3]} 13... h6 {[%clk 0:02:41.5]} 14.
Ne4 {[%clk 0:02:36.8]} 14... Qc8 {[%clk 0:02:28.1]} 15. Bd2 {[%clk 0:02:33.8]}
15... Bh3 {[%clk 0:02:08.9]} 16. Bf3 {[%clk 0:02:33.7]} 16... Qe6 {[%clk
0:02:00.7]} 17. Nc5 {[%clk 0:02:29.8]} 17... Qxa2 {[%clk 0:01:55.1]} 18. Qc1
{[%clk 0:02:29.8]} 18... Qa5 {[%clk 0:01:06]} 19. Nxb7 {[%clk 0:02:28.8]} 19...
Qa6 {[%clk 0:01:06.2]} 20. Nc5 {[%clk 0:02:26.5]} 20... Rxb1 {[%clk 0:01:07.1]}
21. Qxb1 {[%clk 0:02:25.2]} 21... Qa5 {[%clk 0:01:07.7]} 22. Bxc6 {[%clk
0:02:23.2]} 22... Qxc5 {[%clk 0:01:04.8]} 23. Bxe8 {[%clk 0:02:23]} 23... Qd5
{[%clk 0:01:04.5]} 24. Re4 {[%clk 0:02:06.9]} 24... f5 {[%clk 0:01:04]} 25. Qb8
{[%clk 0:02:07.4]} 25... Kh7 {[%clk 0:00:53.3]} 26. c4 {[%clk 0:02:06.5]} 26...
Qd6 {[%clk 0:00:43]} 27. Re1 {[%clk 0:02:05.3]} 27... e4 {[%clk 0:00:43.6]} 28.
Bf4 {[%clk 0:01:59.7]} 28... Qc5 {[%clk 0:00:33.1]} 29. Qxc7 {[%clk 0:01:58.6]}
29... Qb4 {[%clk 0:00:29.7]} 30. Rd1 {[%clk 0:01:47.9]} 30... exd3 {[%clk
0:00:28.6]} 31. cxd3 {[%clk 0:01:46.6]} 31... Qb3 {[%clk 0:00:27.7]} 32. Re1
{[%clk 0:01:41.2]} 32... Qc3 {[%clk 0:00:19.6]} 33. Qe7 {[%clk 0:01:40.3]} 33...
a5 {[%clk 0:00:07.4]} 34. h5 {[%clk 0:01:39.9]} 34... gxh5 {[%clk 0:00:05.2]}
35. Bxh5 {[%clk 0:01:39.7]} 35... a4 {[%clk 0:00:04.6]} 36. Qe6 {[%clk 0:01:40]}
36... a3 {[%clk 0:00:02.7]} 37. Bg6+ {[%clk 0:01:38.9]} 37... Kh8 {[%clk
0:00:03.2]} 38. Qe8+ {[%clk 0:01:38.9]} 1-0

[Event "*** Titled Tuesday Blitz"]
[Site "Chess.com"]
[Date "2020.04.21"]
[Round "2"]
[White "ArnaudovP"]
[Black "violetflower04"]
[Result "1-0"]
[WhiteElo "2634"]
[BlackElo "2259"]
[TimeControl "180+1"]
[EndTime "10:16:26 PDT"]
[Termination "ArnaudovP won by resignation"]

1. Nf3 {[%clk 0:03:00]} 1... c5 {[%clk 0:03:00.1]} 2. c4 {[%clk 0:02:58.3]} 2...
e6 {[%clk 0:03:00.2]} 3. Nc3 {[%clk 0:02:57.9]} 3... d5 {[%clk 0:03:00.6]} 4. d4
{[%clk 0:02:53.7]} 4... cxd4 {[%clk 0:02:58.4]} 5. Nxd4 {[%clk 0:02:50.4]} 5...
Nf6 {[%clk 0:02:57]} 6. cxd5 {[%clk 0:02:49.5]} 6... Nxd5 {[%clk 0:02:55.6]} 7.
Bd2 {[%clk 0:02:46.2]} 7... Bc5 {[%clk 0:02:43.3]} 8. Nb3 {[%clk 0:02:46]} 8...
Be7 {[%clk 0:02:28.7]} 9. g3 {[%clk 0:02:45.5]} 9... O-O {[%clk 0:02:28.4]} 10.
Bg2 {[%clk 0:02:45.4]} 10... Nc6 {[%clk 0:02:28.5]} 11. O-O {[%clk 0:02:45]}
11... Bf6 {[%clk 0:02:27.5]} 12. Rc1 {[%clk 0:02:43.6]} 12... Nxc3 {[%clk
0:02:14.6]} 13. Bxc3 {[%clk 0:02:42.1]} 13... Qe7 {[%clk 0:02:12.4]} 14. Bxf6
{[%clk 0:02:38.8]} 14... Qxf6 {[%clk 0:02:13.3]} 15. Qd2 {[%clk 0:02:33.4]}
15... Rd8 {[%clk 0:02:05.1]} 16. Qc3 {[%clk 0:02:32.4]} 16... Bd7 {[%clk
0:01:57.1]} 17. Nc5 {[%clk 0:02:30.6]} 17... Qe7 {[%clk 0:01:31.5]} 18. Nxb7
{[%clk 0:02:25.1]} 18... Rdc8 {[%clk 0:01:31.5]} 19. Qc5 {[%clk 0:02:22.9]}
19... Rab8 {[%clk 0:01:21.7]} 20. Qxe7 {[%clk 0:02:17]} 20... Nxe7 {[%clk
0:01:22.6]} 21. Nd6 {[%clk 0:02:11.6]} 21... Rxc1 {[%clk 0:01:19.6]} 22. Rxc1
{[%clk 0:02:10.3]} 22... Rb6 {[%clk 0:00:28.9]} 23. Nc4 {[%clk 0:02:09.1]} 23...
Ra6 {[%clk 0:00:28.9]} 24. Rd1 {[%clk 0:02:07.8]} 24... Be8 {[%clk 0:00:08.8]}
25. Rd8 {[%clk 0:02:03.5]} 25... Kf8 {[%clk 0:00:07.9]} 26. Nd6 {[%clk
0:02:03.1]} 26... Rxd6 {[%clk 0:00:08.6]} 27. Rxd6 {[%clk 0:02:02.4]} 27... Nf5
{[%clk 0:00:09.1]} 28. Ra6 {[%clk 0:02:01.4]} 28... Nd4 {[%clk 0:00:09.8]} 29.
e3 {[%clk 0:01:53]} 29... Ne2+ {[%clk 0:00:10.3]} 30. Kh1 {[%clk 0:01:52.6]}
30... Nc1 {[%clk 0:00:05.5]} 31. Rxa7 {[%clk 0:01:50.7]} 31... g6 {[%clk
0:00:05.9]} 32. b4 {[%clk 0:01:47.4]} 32... Nd3 {[%clk 0:00:05.5]} 33. a3 {[%clk
0:01:46.9]} 33... Kg7 {[%clk 0:00:05.5]} 34. Kg1 {[%clk 0:01:46.4]} 34... Nb2
{[%clk 0:00:05.1]} 35. Bf1 {[%clk 0:01:45]} 35... Ba4 {[%clk 0:00:04.3]} 36. b5
{[%clk 0:01:44.2]} 1-0

[Event "*** Titled Tuesday Blitz"]
[Site "Chess.com"]
[Date "2020.04.21"]
[Round "2"]
[White "Vice64"]
[Black "MihailNik"]
[Result "1-0"]
[WhiteElo "2529"]
[BlackElo "2734"]
[TimeControl "180+1"]
[EndTime "10:16:27 PDT"]
[Termination "Vice64 won by resignation"]

1. e4 {[%clk 0:03:00.9]} 1... e6 {[%clk 0:02:59.8]} 2. d4 {[%clk 0:03:00]} 2...
d5 {[%clk 0:02:59.8]} 3. Nc3 {[%clk 0:03:00.6]} 3... dxe4 {[%clk 0:02:59]} 4.
Nxe4 {[%clk 0:03:00.5]} 4... Nd7 {[%clk 0:02:59.6]} 5. Nf3 {[%clk 0:03:00]} 5...
Ngf6 {[%clk 0:02:59.7]} 6. Bg5 {[%clk 0:02:56.4]} 6... Be7 {[%clk 0:02:59.5]} 7.
Nxf6+ {[%clk 0:02:55.1]} 7... Nxf6 {[%clk 0:03:00.4]} 8. Bd3 {[%clk 0:02:53.5]}
8... O-O {[%clk 0:03:00]} 9. Qd2 {[%clk 0:02:48.5]} 9... b6 {[%clk 0:02:58.1]}
10. O-O-O {[%clk 0:02:46.9]} 10... Bb7 {[%clk 0:02:57.7]} 11. h4 {[%clk
0:02:45.3]} 11... c5 {[%clk 0:02:51.7]} 12. dxc5 {[%clk 0:02:44.7]} 12... bxc5
{[%clk 0:02:39.3]} 13. Qe2 {[%clk 0:02:36.5]} 13... Qb6 {[%clk 0:02:31]} 14. Ne5
{[%clk 0:02:35.1]} 14... Rab8 {[%clk 0:02:01.7]} 15. c4 {[%clk 0:02:20.6]} 15...
Rfd8 {[%clk 0:01:37.5]} 16. Rd2 {[%clk 0:01:56.6]} 16... Kf8 {[%clk 0:01:24.2]}
17. Rhd1 {[%clk 0:01:52.5]} 17... Qc7 {[%clk 0:01:17.2]} 18. Bf4 {[%clk
0:01:43.4]} 18... Bd6 {[%clk 0:01:17.1]} 19. g3 {[%clk 0:01:34.7]} 19... a5
{[%clk 0:01:13.8]} 20. Bc2 {[%clk 0:01:26.3]} 20... Kg8 {[%clk 0:01:03]} 21. Kb1
{[%clk 0:01:09.5]} 21... Ba8 {[%clk 0:00:58.6]} 22. Nxf7 {[%clk 0:01:00.1]}
22... Bxf4 {[%clk 0:00:25.2]} 23. Rxd8+ {[%clk 0:00:51]} 23... Rxd8 {[%clk
0:00:25.4]} 24. Nxd8 {[%clk 0:00:51.1]} 24... Be5 {[%clk 0:00:18]} 25. Nxe6
{[%clk 0:00:48.6]} 1-0

[Event "*** Titled Tuesday Blitz"]
[Site "Chess.com"]
[Date "2020.04.21"]
[Round "2"]
[White "WhiteKnight2612"]
[Black "Bubar"]
[Result "1-0"]
[WhiteElo "2653"]
[BlackElo "2338"]
[TimeControl "180+1"]
[EndTime "10:16:28 PDT"]
[Termination "WhiteKnight2612 won by resignation"]

1. Nf3 {[%clk 0:03:00.9]} 1... d5 {[%clk 0:02:59.4]} 2. g3 {[%clk 0:02:59.3]}
2... Nf6 {[%clk 0:02:59]} 3. Bg2 {[%clk 0:02:59.7]} 3... Bg4 {[%clk 0:02:58.3]}
4. O-O {[%clk 0:03:00.6]} 4... e6 {[%clk 0:02:58.3]} 5. c4 {[%clk 0:02:58.1]}
5... c6 {[%clk 0:02:57.7]} 6. cxd5 {[%clk 0:02:58.2]} 6... exd5 {[%clk
0:02:57.1]} 7. d4 {[%clk 0:02:54.7]} 7... Nbd7 {[%clk 0:02:56.8]} 8. Nc3 {[%clk
0:02:54.2]} 8... Bb4 {[%clk 0:02:55.4]} 9. Qb3 {[%clk 0:02:47.5]} 9... Qb6
{[%clk 0:02:54.1]} 10. Na4 {[%clk 0:02:40.7]} 10... Qa5 {[%clk 0:02:47.5]} 11.
a3 {[%clk 0:02:38]} 11... Bd6 {[%clk 0:02:44.1]} 12. Qxb7 {[%clk 0:02:33.7]}
12... O-O {[%clk 0:02:42.5]} 13. Qxc6 {[%clk 0:02:33.5]} 13... Rac8 {[%clk
0:02:36.4]} 14. Qxd6 {[%clk 0:02:33.2]} 14... Qxa4 {[%clk 0:02:36.6]} 15. Qf4
{[%clk 0:02:20.8]} 15... Rfe8 {[%clk 0:02:31.7]} 16. Re1 {[%clk 0:02:20.2]}
16... Re4 {[%clk 0:02:29.1]} 17. Qd2 {[%clk 0:02:17]} 17... Rce8 {[%clk
0:02:17.5]} 18. e3 {[%clk 0:01:53.2]} 18... R4e6 {[%clk 0:01:51.2]} 19. Qb4
{[%clk 0:01:50.2]} 19... Qa6 {[%clk 0:01:49.3]} 20. Qd2 {[%clk 0:01:25.9]} 20...
Ne4 {[%clk 0:01:45]} 21. Qc2 {[%clk 0:01:12.2]} 21... Rc8 {[%clk 0:01:41.6]} 22.
Qb3 {[%clk 0:01:11.1]} 22... Nb6 {[%clk 0:01:38.9]} 23. Ne5 {[%clk 0:01:09.6]}
23... Bf5 {[%clk 0:01:22.9]} 24. f3 {[%clk 0:01:09.2]} 24... Nd6 {[%clk
0:01:21.1]} 25. e4 {[%clk 0:01:09.6]} 25... Bg6 {[%clk 0:01:06.3]} 26. exd5
{[%clk 0:01:04.8]} 26... Bc2 {[%clk 0:01:06.1]} 27. Qe3 {[%clk 0:00:55.1]} 27...
Nxd5 {[%clk 0:01:03.4]} 28. Qf2 {[%clk 0:00:55.4]} 28... Rce8 {[%clk 0:01:01.3]}
29. f4 {[%clk 0:00:54.5]} 29... Bb3 {[%clk 0:00:58.8]} 30. Bd2 {[%clk
0:00:50.8]} 30... f6 {[%clk 0:00:58.5]} 31. Nd7 {[%clk 0:00:48.5]} 31... Qc6
{[%clk 0:00:54.7]} 32. Nc5 {[%clk 0:00:45.8]} 32... Rxe1+ {[%clk 0:00:53.7]} 33.
Rxe1 {[%clk 0:00:46.6]} 33... Rxe1+ {[%clk 0:00:53.6]} 34. Qxe1 {[%clk
0:00:47.5]} 34... Bc4 {[%clk 0:00:53.3]} 35. Qe6+ {[%clk 0:00:45.9]} 35... Kf8
{[%clk 0:00:53.6]} 36. Nd7+ {[%clk 0:00:45.3]} 1-0

[Event "*** Titled Tuesday Blitz"]
[Site "Chess.com"]
[Date "2020.04.21"]
[Round "2"]
[White "GadimbayliA"]
[Black "fancyknightmaneuvers"]
[Result "1-0"]
[WhiteElo "2938"]
[BlackElo "2603"]
[TimeControl "180+1"]
[EndTime "10:16:30 PDT"]
[Termination "GadimbayliA won by resignation"]

1. e4 {[%clk 0:03:00.9]} 1... c5 {[%clk 0:02:59.6]} 2. Nf3 {[%clk 0:03:01]} 2...
e6 {[%clk 0:02:59.7]} 3. d4 {[%clk 0:03:00.7]} 3... cxd4 {[%clk 0:03:00.6]} 4.
Nxd4 {[%clk 0:03:01.6]} 4... Nc6 {[%clk 0:03:01.1]} 5. Nc3 {[%clk 0:03:01.3]}
5... Qc7 {[%clk 0:03:01.6]} 6. Be3 {[%clk 0:03:01.8]} 6... a6 {[%clk 0:03:02]}
7. Qd2 {[%clk 0:03:02.4]} 7... Nf6 {[%clk 0:03:02.3]} 8. f4 {[%clk 0:03:03]}
8... Bb4 {[%clk 0:02:51.6]} 9. Bd3 {[%clk 0:03:02.5]} 9... d5 {[%clk 0:02:47.2]}
10. e5 {[%clk 0:02:45.3]} 10... Nd7 {[%clk 0:02:36.7]} 11. O-O {[%clk 0:02:41]}
11... Bc5 {[%clk 0:02:14.2]} 12. Nce2 {[%clk 0:02:40.5]} 12... Nb4 {[%clk
0:02:06]} 13. a3 {[%clk 0:02:33.1]} 13... Nxd3 {[%clk 0:02:05.9]} 14. cxd3
{[%clk 0:02:34]} 14... b5 {[%clk 0:02:00.1]} 15. Rac1 {[%clk 0:02:26.8]} 15...
Qa7 {[%clk 0:01:53.1]} 16. Kh1 {[%clk 0:01:56.2]} 16... Bb7 {[%clk 0:01:47]} 17.
Rxc5 {[%clk 0:01:28.1]} 17... Qxc5 {[%clk 0:00:43.7]} 18. Nxe6 {[%clk 0:01:28]}
18... Qc6 {[%clk 0:00:43.4]} 19. N2d4 {[%clk 0:01:24.8]} 19... Qb6 {[%clk
0:00:41.4]} 20. Nf5 {[%clk 0:00:48.1]} 20... Qxe6 {[%clk 0:00:29]} 21. Nxg7+
{[%clk 0:00:47.8]} 21... Ke7 {[%clk 0:00:27.5]} 22. Nxe6 {[%clk 0:00:48.7]}
22... fxe6 {[%clk 0:00:28.4]} 23. f5 {[%clk 0:00:47.8]} 23... exf5 {[%clk
0:00:26.3]} 24. Qb4+ {[%clk 0:00:46.8]} 24... Ke8 {[%clk 0:00:25.2]} 25. Bg5
{[%clk 0:00:46.2]} 1-0